bitfinex-derivatives/quotes_SOLF0:USTF0_20250705
["timestamp","ask_amount","ask_price","bid_price","bid_amount"]
[1751744066717,20.38268109,146.59,146.58,242.1]
[1751744068717,13.56258109,146.59,146.58,242.1]
[1751744069817,13.56258109,146.59,146.58,195.74]
[1751744070413,13.56258109,146.59,146.58,202.5605]
[1751744072917,18.57865198,146.59,146.58,195.74]
[1751744078723,18.57865198,146.59,146.58,202.5605]
[1751744080226,20.98651701,146.59,146.58,202.5605]
[1751744083430,20.98651701,146.59,146.58,205.59147841]
[1751744083628,13.56258109,146.59,146.58,205.59147841]
[1751744084031,13.56258109,146.59,146.58,205.59071701]
[1751744084427,8.78108448,146.59,146.58,205.59071701]
[1751744084627,13.57833542,146.59,146.58,205.59071701]
[1751744087522,4.79725094,146.59,146.58,205.59071701]
[1751744087727,9.56534227,146.63,146.62,6.8187]
[1751744087927,30.54538102,146.63,146.62,202.5187]
[1751744088327,30.54538102,146.63,146.62,205.54891701]
[1751744088527,20.98003875,146.63,146.62,205.54891701]
[1751744088731,18.57314203,146.63,146.62,205.54891701]
[1751744089827,13.55393996,146.63,146.62,205.54891701]
[1751744095133,4.79585233,146.63,146.62,205.54891701]
[1751744096940,6.8168,146.66,146.63,6.8179]
[1751744097135,18.68557672,146.65,146.63,9.84811701]
[1751744097335,13.61700974,146.64,146.63,9.84811701]
[1751744106154,8.78012466,146.64,146.63,9.84811701]
[1751744106357,6.8168,146.66,146.63,9.84811701]
[1751744106653,13.55789616,146.65,146.63,9.84811701]
[1751744106846,6.8168,146.66,146.63,9.84811701]
[1751744107048,13.55789616,146.65,146.63,9.84811701]
[1751744107248,6.8168,146.66,146.63,9.84811701]
[1751744107448,13.5570609,146.65,146.64,6.8177]
[1751744110759,13.5570609,146.65,146.64,9.84791701]
[1751744114166,13.5570609,146.65,146.64,6.8177]
[1751744117665,16.58727791,146.65,146.62,3.03021701]
[1751744117867,9.56534227,146.68,146.58,46.26]
[1751744117868,3.03021701,146.63,146.58,46.26]
[1751744118071,3.03021701,146.6,146.58,195.58]
[1751744118365,18.60985389,146.62,146.58,195.58]
[1751744118366,3.03021701,146.61,146.59,6.8201]
[1751744118567,8.76886958,146.6,146.59,6.8201]
[1751744119361,13.56697549,146.6,146.59,9.85031701]
[1751744119570,10.04011701,146.66,146.63,6.8179]
[1751744119771,24.05642939,146.65,146.62,195.58]
[1751744120074,13.56431839,146.64,146.62,195.58]
[1751744120371,13.56431839,146.63,146.62,195.58]
[1751744121573,13.56431839,146.63,146.62,202.3985]
[1751744122472,20.38251839,146.63,146.62,195.58]
[1751744122670,21.60043377,146.63,146.6,195.6]
[1751744122868,3.03021701,146.61,146.6,195.6]
[1751744123069,16.5945354,146.61,146.59,6.8198]
[1751744123367,13.56431839,146.6,146.59,202.4198]
[1751744125077,4.79664113,146.6,146.59,202.4198]
[1751744125676,9.84861701,146.63,146.59,205.45001701]
[1751744125875,18.52251567,146.62,146.59,205.45001701]
[1751744126074,13.51496116,146.61,146.59,205.45001701]
[1751744126278,9.84861701,146.63,146.59,205.45001701]
[1751744126475,18.52523831,146.62,146.59,205.45001701]
[1751744126675,9.84861701,146.63,146.59,205.45001701]
[1751744126877,13.51623319,146.62,146.59,205.45001701]
[1751744127077,9.84861701,146.63,146.59,205.45001701]
[1751744127278,13.4996193,146.62,146.59,205.45001701]
[1751744127477,8.74160074,146.61,146.59,205.45001701]
[1751744127778,9.84861701,146.63,146.59,205.45001701]
[1751744127974,13.50050645,146.62,146.59,205.45001701]
[1751744128178,8.7417392,146.61,146.59,205.45001701]
[1751744128378,9.84861701,146.63,146.59,205.45001701]
[1751744128580,13.50323701,146.62,146.59,205.45001701]
[1751744128778,8.74353471,146.61,146.59,205.45001701]
[1751744128974,9.84861701,146.63,146.59,205.45001701]
[1751744129175,13.50330164,146.62,146.59,205.45001701]
[1751744129376,8.74353471,146.61,146.6,6.8195]
[1751744129682,8.74353471,146.61,146.6,9.84971701]
[1751744130282,13.50371239,146.61,146.6,9.84971701]
[1751744132281,8.74353471,146.61,146.6,9.84971701]
[1751744136583,13.827,146.66,146.6,3.03021701]
[1751744136781,20.92945877,146.65,146.63,3.03021701]
[1751744136983,20.92945877,146.64,146.63,3.03021701]
[1751744137181,20.92945877,146.64,146.63,198.63021701]
[1751744137982,20.92945877,146.64,146.63,205.44841701]
[1751744138183,12.184944,146.64,146.63,205.44841701]
[1751744138384,4.73917481,146.64,146.63,205.44841701]
[1751744138883,16.38144227,146.68,146.63,205.44841701]
[1751744138884,6.8161,146.68,146.65,6.8171]
[1751744139084,20.95521312,146.67,146.65,9.84731701]
[1751744139288,18.54500515,146.66,146.65,9.84731701]
[1751744139983,18.54465149,146.66,146.65,9.84731701]
[1751744140593,4.75962009,146.66,146.65,9.84731701]
[1751744140787,6.8156,146.69,146.66,6.8166]
[1751744140992,18.54054956,146.68,146.66,9.84681701]
[1751744141190,13.50781245,146.67,146.66,9.84681701]
[1751744141994,13.50781245,146.67,146.66,6.8166]
[1751744143591,8.74929199,146.67,146.66,6.8166]
[1751744144593,6.8156,146.69,146.67,6.8163]
[1751744144791,13.53659102,146.68,146.67,6.8163]
[1751744147494,13.53659102,146.68,146.66,6.8166]
[1751744147694,6.8156,146.69,146.66,6.8166]
[1751744147993,13.57285617,146.68,146.66,6.8166]
[1751744148292,6.8156,146.69,146.66,6.8166]
[1751744148492,13.57064426,146.68,146.66,6.8166]
[1751744148687,6.8156,146.69,146.66,6.8166]
[1751744148888,13.57096584,146.68,146.66,6.8166]
[1751744149087,6.8156,146.69,146.66,6.8166]
[1751744149288,20.38588455,146.68,146.65,53.0571]
[1751744149493,8.77695114,146.67,146.65,53.0571]
[1751744149682,6.816,146.68,146.65,53.0571]
[1751744149887,8.77619313,146.67,146.65,53.0571]
[1751744150089,6.816,146.68,146.65,53.0571]
[1751744150290,13.56911644,146.67,146.65,53.0571]
[1751744150485,6.816,146.68,146.65,53.0571]
[1751744150690,13.56864123,146.67,146.65,53.0571]
[1751744150891,6.816,146.68,146.65,53.0571]
[1751744151092,13.56864123,146.67,146.65,53.0571]
[1751744151394,6.8164,146.67,146.65,46.24]
[1751744151794,21.26062543,146.7,146.65,46.24]
[1751744151991,21.06787751,146.69,146.65,46.24]
[1751744152195,18.65406904,146.68,146.65,46.24]
[1751744152392,13.56820424,146.67,146.65,46.24]
[1751744152690,8.77526354,146.66,146.65,46.24]
[1751744155195,15.59206354,146.66,146.65,46.24]
[1751744155500,20.38454793,146.66,146.65,46.24]
[1751744157098,13.56774793,146.66,146.65,46.24]
[1751744157593,4.79248439,146.66,146.65,53.0573]
[1751744158300,13.7808,146.7,146.67,6.8163]
[1751744158502,21.00632549,146.69,146.67,6.8163]
[1751744158799,13.53826503,146.68,146.67,6.8163]
[1751744160296,13.53826503,146.68,146.66,6.8166]
[1751744160595,6.8155,146.69,146.66,6.8166]
[1751744160800,13.53575492,146.68,146.66,6.8166]
[1751744161001,6.8162,146.68,146.65,53.0569]
[1751744161402,8.7556209,146.67,146.65,53.0569]
[1751744161601,6.8162,146.68,146.65,53.0569]
[1751744161802,13.53512524,146.67,146.65,53.0569]
[1751744162003,6.8162,146.68,146.65,53.0569]
[1751744162197,13.5354587,146.67,146.65,53.0569]
[1751744162407,6.8162,146.68,146.65,53.0569]
[1751744162610,13.53544598,146.67,146.65,53.0569]
[1751744162809,6.8162,146.68,146.65,53.0569]
[1751744163109,13.53544598,146.67,146.65,53.0569]
[1751744163308,6.8164,146.67,146.65,46.24]
[1751744165509,6.8168,146.66,146.65,46.24]
[1751744165711,11.59577879,146.66,146.65,241.76]
[1751744166014,11.59577879,146.66,146.65,46.24]
[1751744166615,20.35489346,146.66,146.65,46.24]
[1751744167314,25.40773433,146.66,146.65,46.24]
[1751744168017,20.35489346,146.66,146.65,46.24]
[1751744168313,13.53809346,146.66,146.65,46.24]
[1751744169516,13.54240005,146.66,146.65,46.24]
[1751744170916,20.35920005,146.66,146.65,46.24]
[1751744171218,25.40256932,146.66,146.64,195.52]
[1751744171413,4.77897879,146.65,146.64,195.52]
[1751744171712,13.54590062,146.65,146.64,195.52]
[1751744172219,13.54590062,146.65,146.64,202.3377]
[1751744173820,13.54590062,146.65,146.64,6.8177]
[1751744174020,13.54590062,146.65,146.64,202.3377]
[1751744175721,13.54590062,146.65,146.64,6.8177]
[1751744176115,13.54590062,146.65,146.64,202.3377]
[1751744177223,18.59454636,146.65,146.64,202.3377]
[1751744183227,13.81556757,146.65,146.64,202.3377]
[1751744183433,18.59725489,146.65,146.64,202.3377]
[1751744185434,18.59725489,146.65,146.64,205.36595865]
[1751744185632,12.56782938,146.69,146.66,6.8167]
[1751744185834,21.01475298,146.68,146.66,6.8167]
[1751744186031,18.60167092,146.67,146.66,6.8167]
[1751744190735,18.60167092,146.67,146.65,6.8171]
[1751744190936,13.54875345,146.66,146.65,6.8171]
[1751744195137,13.57084309,146.66,146.65,6.8171]
[1751744195742,13.57047677,146.66,146.65,6.8171]
[1751744196147,8.76810907,146.66,146.65,6.8171]
[1751744197344,9.53957073,146.7,146.68,6.8156]
[1751744197546,13.58763348,146.69,146.68,202.3156]
[1751744198241,9.53957073,146.74,146.7,6.8148]
[1751744198447,21.07491349,146.73,146.68,241.72]
[1751744198638,21.07491349,146.72,146.68,241.72]
[1751744198840,13.58341359,146.71,146.68,241.72]
[1751744199143,8.78488336,146.7,146.69,6.8154]
[1751744199343,6.8139,146.73,146.68,241.72]
[1751744199539,13.57281646,146.72,146.71,6.8145]
[1751744199740,13.57281646,146.72,146.71,202.3145]
[1751744204049,8.77665516,146.72,146.71,202.3145]
[1751744206449,6.8136,146.73,146.71,202.3145]
[1751744209750,6.8136,146.73,146.71,195.5]
[1751744209950,6.814,146.72,146.71,195.5]
[1751744210151,23.43828105,146.72,146.71,195.5]
[1751744210651,20.41297326,146.72,146.71,195.5]
[1751744210850,23.43828105,146.72,146.71,195.5]
[1751744211155,18.64538725,146.72,146.71,195.5]
[1751744211749,11.83138725,146.72,146.71,195.5]
[1751744212356,11.82953089,146.72,146.71,195.5]
[1751744212748,3.02530779,146.72,146.71,195.5]
[1751744213255,9.83910779,146.73,146.71,195.5]
[1751744214157,6.814,146.72,146.71,195.5]
[1751744215161,9.83930779,146.72,146.71,195.5]
[1751744215356,6.8147,146.71,146.69,195.42]
[1751744215560,11.82827418,146.7,146.65,46.2]
[1751744215758,3.02530779,146.68,146.66,6.8165]
[1751744215957,3.02530779,146.68,146.66,202.2365]
[1751744216461,3.02530779,146.68,146.66,195.42]
[1751744216959,9.84120779,146.68,146.66,195.42]
[1751744217160,3.02530779,146.67,146.66,195.42]
[1751744217763,6.8159,146.68,146.66,195.42]
[1751744219269,4.80544157,146.67,146.65,46.2]
[1751744219567,15.60658662,146.66,146.65,46.2]
[1751744219769,20.41278927,146.66,146.65,46.2]
[1751744219972,20.41278927,146.66,146.6,4.73130883]
[1751744220171,6.8168,146.66,146.61,241.64]
[1751744220471,6.8168,146.66,146.63,6.8178]
[1751744220664,6.8166,146.67,146.62,195.44]
[1751744220865,13.59671004,146.66,146.62,195.44]
[1751744221171,6.8166,146.67,146.64,6.8177]
[1751744221470,13.55153878,146.66,146.64,6.8177]
[1751744221660,6.8166,146.67,146.64,6.8177]
[1751744221861,13.55176437,146.66,146.64,6.8177]
[1751744222062,6.8166,146.67,146.64,6.8177]
[1751744222269,13.55204053,146.66,146.64,6.8177]
[1751744222470,4.80691313,146.66,146.64,6.8177]
[1751744222672,6.8166,146.67,146.64,6.8177]
[1751744222864,8.74544661,146.66,146.64,6.8177]
[1751744223066,6.8166,146.67,146.64,6.8177]
[1751744223265,8.74544661,146.66,146.64,6.8177]
[1751744223571,6.8166,146.67,146.64,202.2777]
[1751744223765,8.7457681,146.66,146.64,202.2777]
[1751744223970,6.8166,146.67,146.64,202.2777]
[1751744224171,8.74576758,146.66,146.64,202.2777]
[1751744224371,6.8166,146.67,146.64,202.2777]
[1751744224564,8.7460935,146.66,146.64,202.2777]
[1751744224764,6.8166,146.67,146.64,202.2777]
[1751744224969,8.7460935,146.66,146.64,202.2777]
[1751744225168,6.8166,146.67,146.64,202.2777]
[1751744225366,8.7460935,146.66,146.64,202.2777]
[1751744225565,6.8166,146.67,146.64,202.2777]
[1751744225767,8.74642704,146.66,146.64,202.2777]
[1751744225966,6.8166,146.67,146.64,202.2777]
[1751744226160,8.74642704,146.66,146.64,202.2777]
[1751744226365,6.8166,146.67,146.64,202.2777]
[1751744226565,8.74676406,146.66,146.64,202.2777]
[1751744226767,6.8166,146.67,146.64,202.2777]
[1751744227065,8.74676406,146.66,146.64,202.2777]
[1751744227265,6.8166,146.67,146.64,202.2777]
[1751744227466,8.74710462,146.66,146.64,202.2777]
[1751744227666,6.8166,146.67,146.64,202.2777]
[1751744227867,8.74710462,146.66,146.64,202.2777]
[1751744228070,6.8166,146.67,146.64,202.2777]
[1751744228266,8.74710462,146.66,146.64,202.2777]
[1751744228462,6.8166,146.67,146.64,202.2777]
[1751744228667,8.74745112,146.66,146.64,202.2777]
[1751744228870,6.8166,146.67,146.64,202.2777]
[1751744229074,8.74745112,146.66,146.64,202.2777]
[1751744229273,6.8166,146.67,146.64,202.2777]
[1751744229475,8.74780145,146.66,146.64,202.2777]
[1751744229673,6.8166,146.67,146.64,202.2777]
[1751744229873,13.480032,146.66,146.64,202.2777]
[1751744230072,6.8166,146.67,146.64,202.2777]
[1751744230274,13.48735233,146.66,146.64,202.2777]
[1751744230473,6.8166,146.67,146.64,202.2777]
[1751744230673,13.48753816,146.66,146.64,202.2777]
[1751744230875,6.8166,146.67,146.64,202.2777]
[1751744231066,13.47668764,146.66,146.64,202.2777]
[1751744231269,6.8166,146.67,146.64,202.2777]
[1751744231469,13.4757689,146.66,146.64,202.2777]
[1751744231672,6.8166,146.67,146.64,202.2777]
[1751744231871,13.47577106,146.66,146.64,202.2777]
[1751744232173,6.817,146.66,146.64,195.46]
[1751744236380,6.817,146.66,146.64,202.2777]
[1751744237784,9.84546513,146.66,146.64,202.2777]
[1751744238176,6.817,146.66,146.64,195.46]
[1751744238376,9.84546513,146.66,146.64,195.46]
[1751744238577,9.84546513,146.66,146.63,6.818]
[1751744238779,9.84546513,146.66,146.63,202.298]
[1751744239082,6.817,146.66,146.63,202.298]
[1751744239683,6.817,146.66,146.63,205.32646513]
[1751744241485,9.84496513,146.67,146.64,6.8177]
[1751744245388,8.73831985,146.66,146.64,6.8177]
[1751744245589,9.84496513,146.67,146.64,6.8177]
[1751744245889,3.02846513,146.65,146.63,202.2981]
[1751744246489,3.02846513,146.64,146.63,195.48]
[1751744246879,3.02846513,146.65,146.63,195.48]
[1751744247483,3.02846513,146.66,146.63,195.48]
[1751744247684,3.02846513,146.67,146.63,195.48]
[1751744247979,11.76880896,146.66,146.63,195.48]
[1751744248184,3.02846513,146.66,146.63,195.48]
[1751744248581,9.84536513,146.66,146.63,195.48]
[1751744249189,6.8169,146.66,146.63,195.48]
[1751744249490,3.02846513,146.65,146.63,202.298]
[1751744250594,9.84596513,146.65,146.63,195.48]
[1751744252195,6.8177,146.64,146.63,195.48]
[1751744253495,9.84596513,146.65,146.63,195.48]
[1751744254294,8.7450998,146.64,146.63,195.48]
[1751744254696,11.77356493,146.64,146.61,46.2]
[1751744254998,3.02846513,146.62,146.61,46.2]
[1751744255193,16.49786463,146.62,146.61,46.2]
[1751744255497,23.31656463,146.62,146.61,46.2]
[1751744258292,28.36471592,146.62,146.61,46.2]
[1751744259596,6.8192,146.61,146.58,6.8203]
[1751744259790,3.02846513,146.61,146.57,49.24846513]
[1751744260095,3.02846513,146.62,146.58,195.5]
[1751744260302,13.4696726,146.61,146.59,6.8198]
[1751744260491,3.02846513,146.62,146.59,6.8198]
[1751744260798,13.47780952,146.61,146.58,198.52846513]
[1751744261001,3.02846513,146.62,146.59,6.82]
[1751744261201,13.4447235,146.61,146.58,198.52846513]
[1751744261398,3.02846513,146.62,146.58,198.52846513]
[1751744261699,13.4451581,146.61,146.58,198.52846513]
[1751744261901,3.02846513,146.62,146.59,6.8196]
[1751744262101,13.4451581,146.61,146.59,6.8196]
[1751744262300,3.02846513,146.62,146.59,6.8196]
[1751744262600,13.44426692,146.61,146.59,6.8196]
[1751744262799,3.02846513,146.62,146.59,6.8196]
[1751744263002,13.42602253,146.61,146.59,6.8196]
[1751744263201,3.02846513,146.62,146.59,6.8196]
[1751744263400,13.42519479,146.61,146.59,6.8196]
[1751744263597,9.84716513,146.62,146.59,6.8196]
[1751744263793,13.41729498,146.61,146.59,6.8196]
[1751744263992,9.84716513,146.62,146.59,6.8196]
[1751744264195,13.41642619,146.61,146.59,6.8196]
[1751744264393,9.84716513,146.62,146.59,6.8196]
[1751744264700,13.4156205,146.61,146.6,6.8196]
[1751744265201,8.7131357,146.61,146.6,6.8196]
[1751744268409,9.84696513,146.63,146.61,6.8191]
[1751744268608,13.42116534,146.62,146.61,6.8191]
[1751744273917,13.42999663,146.62,146.61,6.8191]
[1751744280721,13.44164684,146.62,146.61,6.8191]
[1751744282017,13.44164684,146.62,146.6,205.34776513]
[1751744282220,6.8183,146.63,146.6,205.34776513]
[1751744282514,13.44431476,146.62,146.6,205.34776513]
[1751744282724,6.8183,146.63,146.6,205.34776513]
[1751744282913,13.44456122,146.62,146.6,205.34776513]
[1751744283113,6.8183,146.63,146.6,205.34776513]
[1751744283313,13.44473059,146.62,146.6,205.34776513]
[1751744283513,6.8183,146.63,146.6,205.34776513]
[1751744283715,13.44543765,146.62,146.6,205.34776513]
[1751744284012,6.8183,146.63,146.6,205.34776513]
[1751744284217,13.44543765,146.62,146.6,205.34776513]
[1751744284515,6.8183,146.63,146.6,205.34776513]
[1751744284713,13.44642363,146.62,146.6,205.34776513]
[1751744284916,6.8183,146.63,146.61,6.8191]
[1751744285113,13.44642363,146.62,146.61,6.8191]
[1751744285918,13.44642363,146.62,146.6,202.3194]
[1751744286119,8.73256526,146.61,146.6,195.5]
[1751744287317,13.44783447,146.61,146.6,195.5]
[1751744288626,13.44783447,146.61,146.6,202.3196]
[1751744292227,18.47386127,146.61,146.6,6.8196]
[1751744293330,18.47386127,146.61,146.59,202.2998]
[1751744293528,13.44783447,146.6,146.59,202.2998]
[1751744296427,8.73256526,146.6,146.59,202.2998]
[1751744296627,13.42675915,146.6,146.59,202.2998]
[1751744298539,13.42675915,146.6,146.59,205.33023651]
[1751744299337,4.69419389,146.6,146.59,205.33023651]
[1751744299539,13.42898983,146.6,146.59,205.33023651]
[1751744300840,8.73479594,146.6,146.59,205.33023651]
[1751744301040,13.4324408,146.6,146.59,205.33023651]
[1751744301240,13.4324408,146.6,146.59,202.2998]
[1751744301640,13.4324408,146.6,146.59,6.8198]
[1751744301841,13.4324408,146.6,146.59,202.2998]
[1751744308348,13.4324408,146.6,146.59,205.33023651]
[1751744309846,13.43267357,146.6,146.59,205.33023651]
[1751744311549,13.43267357,146.6,146.59,202.2998]
[1751744312749,13.43274397,146.6,146.59,202.2998]
[1751744313553,13.43274397,146.6,146.59,205.33023651]
[1751744313751,19.42610644,146.64,146.61,6.8189]
[1751744313953,20.86977704,146.63,146.61,6.8189]
[1751744314154,18.45300936,146.62,146.61,6.8189]
[1751744318658,18.45189461,146.62,146.61,6.8189]
[1751744324162,18.45189461,146.62,146.61,9.84933651]
[1751744324461,8.73467925,146.62,146.61,9.84933651]
[1751744326364,11.4992,146.65,146.62,6.8185]
[1751744326565,18.5236673,146.64,146.62,9.84893651]
[1751744326763,13.48471458,146.63,146.62,9.84893651]
[1751744329767,13.48471458,146.63,146.62,3.03043651]
[1751744329963,8.75839059,146.63,146.62,3.03043651]
[1751744330168,13.48273481,146.63,146.61,9.84943651]
[1751744330468,6.818,146.64,146.61,9.84943651]
[1751744330668,13.49600714,146.63,146.61,9.84943651]
[1751744330867,6.818,146.64,146.61,9.84943651]
[1751744331067,13.49600714,146.63,146.61,9.84943651]
[1751744331370,6.818,146.64,146.61,9.84943651]
[1751744331566,8.77132856,146.63,146.61,9.84943651]
[1751744331767,6.818,146.64,146.61,9.84943651]
[1751744331967,8.77132856,146.63,146.61,9.84943651]
[1751744332174,2.4395,146.66,146.61,3.03043651]
[1751744332469,18.53024024,146.65,146.63,3.03043651]
[1751744332664,13.49448799,146.64,146.63,198.45043651]
[1751744333669,13.49448799,146.64,146.63,205.26823651]
[1751744334063,8.77132856,146.64,146.63,251.46823651]
[1751744336468,6.8165,146.67,146.63,251.46823651]
[1751744336664,18.52852539,146.66,146.64,3.03043651]
[1751744336864,13.48405926,146.65,146.64,3.03043651]
[1751744338368,13.48405926,146.65,146.63,251.46823651]
[1751744338570,6.8168,146.66,146.63,251.46823651]
[1751744338769,13.50024747,146.65,146.63,251.46823651]
[1751744338969,6.8168,146.66,146.63,251.46823651]
[1751744339174,13.52201348,146.65,146.63,251.46823651]
[1751744339468,6.8168,146.66,146.63,251.46823651]
[1751744339669,13.52127118,146.65,146.63,251.46823651]
[1751744339869,6.8168,146.66,146.63,251.46823651]
[1751744340071,13.52127118,146.65,146.63,251.46823651]
[1751744340269,6.8168,146.66,146.63,251.46823651]
[1751744340469,13.52139485,146.65,146.63,251.46823651]
[1751744340669,6.8168,146.66,146.63,251.46823651]
[1751744340861,13.52146094,146.65,146.63,251.46823651]
[1751744341067,6.8168,146.66,146.63,251.46823651]
[1751744341366,13.52146094,146.65,146.63,251.46823651]
[1751744341566,6.8168,146.66,146.63,251.46823651]
[1751744341767,13.52095295,146.65,146.63,251.46823651]
[1751744341969,6.8168,146.66,146.63,251.46823651]
[1751744342171,13.52096156,146.65,146.63,251.46823651]
[1751744342368,6.8168,146.66,146.63,251.46823651]
[1751744342569,13.52062607,146.65,146.64,6.8177]
[1751744348473,13.52062607,146.65,146.64,9.84813651]
[1751744348676,6.8165,146.67,146.65,6.8172]
[1751744348968,13.5198269,146.66,146.65,6.8172]
[1751744349165,13.5198269,146.66,146.65,202.1972]
[1751744350273,13.51967495,146.66,146.65,202.1972]
[1751744351775,13.51967495,146.66,146.65,205.22763651]
[1751744352274,8.78036907,146.66,146.65,205.22763651]
[1751744354377,11.4006,146.69,146.66,6.8166]
[1751744354675,20.99859788,146.68,146.66,6.8166]
[1751744354878,13.51191147,146.67,146.66,6.8166]
[1751744355178,13.51191147,146.67,146.65,202.1971]
[1751744355379,8.78003628,146.66,146.65,202.1971]
[1751744356482,8.78003628,146.66,146.63,53.018]
[1751744356777,13.53617482,146.65,146.64,195.36]
[1751744357775,20.35347482,146.65,146.63,46.2]
[1751744357980,13.53676387,146.64,146.63,46.2]
[1751744358180,18.63282692,146.64,146.63,241.56]
[1751744359178,18.63453062,146.64,146.63,241.56]
[1751744359983,13.53794365,146.64,146.63,46.2]
[1751744360181,13.53794365,146.64,146.63,241.56]
[1751744360385,18.59732436,146.64,146.63,241.56]
[1751744361584,25.41502436,146.64,146.63,241.56]
[1751744362181,28.44546087,146.64,146.63,241.56]
[1751744363482,6.8189,146.62,146.59,46.18]
[1751744363781,8.78148782,146.61,146.6,195.36]
[1751744364679,8.78148782,146.61,146.6,202.1796]
[1751744365683,8.78148782,146.61,146.6,205.21003651]
[1751744365981,3.03043651,146.65,146.6,198.39043651]
[1751744366184,18.55333042,146.64,146.61,3.03043651]
[1751744366378,13.49337025,146.63,146.62,202.1984]
[1751744367083,8.76840276,146.63,146.62,202.1984]
[1751744368283,13.47266718,146.63,146.62,202.1984]
[1751744369683,13.47266718,146.63,146.62,6.8184]
[1751744369875,13.47266718,146.63,146.62,202.1984]
[1751744372085,13.47266718,146.63,146.62,205.22883651]
[1751744372294,8.76840276,146.63,146.62,205.22883651]
[1751744376083,2.76e-06,146.63,146.62,205.22883651]
[1751744376286,4.585,146.69,146.66,6.8164]
[1751744376486,9.77343439,146.68,146.66,205.22683651]
[1751744376686,4.713621,146.67,146.66,205.22683651]
[1751744377290,11.4006,146.69,146.67,6.8163]
[1751744377491,4.71234361,146.68,146.67,6.8163]
[1751744380791,4.71234361,146.68,146.67,9.84673651]
[1751744381491,9.84563651,146.7,146.67,9.84673651]
[1751744381691,9.79315393,146.69,146.67,6.8163]
[1751744381886,4.70133245,146.68,146.67,6.8163]
[1751744383992,4.70133245,146.68,146.66,205.22693651]
[1751744384289,6.8155,146.69,146.66,205.22693651]
[1751744389091,9.84563651,146.7,146.67,6.8163]
[1751744389287,13.48327983,146.69,146.67,6.8163]
[1751744389592,3.03043651,146.7,146.67,6.8163]
[1751744389896,13.48327983,146.69,146.67,6.8163]
[1751744390097,3.03043651,146.7,146.67,6.8163]
[1751744390397,13.48227815,146.69,146.67,6.8163]
[1751744390593,6.8154,146.69,146.67,6.8163]
[1751744394003,6.8152,146.7,146.68,6.8158]
[1751744394299,13.47980872,146.69,146.68,6.8158]
[1751744397700,13.47879809,146.69,146.68,6.8158]
[1751744398004,8.72921197,146.69,146.68,6.8158]
[1751744398200,13.47879809,146.69,146.68,6.8158]
[1751744399403,13.47879809,146.69,146.67,9.84653651]
[1751744399599,6.8152,146.7,146.67,9.84653651]
[1751744399799,13.48481427,146.69,146.67,9.84653651]
[1751744400001,6.8152,146.7,146.67,9.84653651]
[1751744400300,13.48481427,146.69,146.66,198.41043651]
[1751744400500,13.48500827,146.68,146.66,198.41043651]
[1751744400700,3.03043651,146.7,146.66,195.38]
[1751744400903,25.39740529,146.69,146.66,202.1968]
[1751744401104,13.48444466,146.68,146.66,202.1968]
[1751744401304,6.8157,146.69,146.66,205.22723651]
[1751744401498,13.47406912,146.68,146.66,205.22723651]
[1751744401705,6.8157,146.69,146.66,205.22723651]
[1751744401900,8.71707447,146.68,146.66,205.22723651]
[1751744402107,6.8157,146.69,146.66,205.22723651]
[1751744402305,8.71705772,146.68,146.66,205.22723651]
[1751744402606,6.8157,146.69,146.66,205.22723651]
[1751744402806,8.71705772,146.68,146.66,205.22723651]
[1751744403105,6.8157,146.69,146.66,205.22723651]
[1751744403306,8.71745662,146.68,146.66,205.22723651]
[1751744403506,6.8157,146.69,146.66,205.22723651]
[1751744403716,8.71745662,146.68,146.66,205.22723651]
[1751744404005,6.8157,146.69,146.66,205.22723651]
[1751744404205,8.71745662,146.68,146.66,205.22723651]
[1751744404405,6.8157,146.69,146.66,205.22723651]
[1751744404608,8.71792421,146.68,146.66,205.22723651]
[1751744404805,6.8157,146.69,146.66,205.22723651]
[1751744406405,6.8152,146.7,146.67,6.8162]
[1751744406606,13.46837161,146.69,146.67,6.8162]
[1751744406805,6.8152,146.7,146.67,6.8162]
[1751744407005,13.47747328,146.69,146.67,9.84663651]
[1751744407305,6.8152,146.7,146.67,9.84663651]
[1751744407508,13.47833508,146.69,146.67,6.8162]
[1751744407702,6.8152,146.7,146.67,6.8162]
[1751744407908,13.47833508,146.69,146.67,6.8162]